Workbook

Sheet Mitchell Low Sulfur 2022
B1: Mitchell Low Sulfur - 2022 CAPP
C4: Offer | D4: Mine | E4: Quantity | F4: Coal Price | G4: Severance Tax Discount | H4: Coal Price | I4: Severance Tax rate | J4: Transportation | M4: Offered Quality | Q4: Quality Adjusted Delivered Pricing
E5: Tons | F5: Coal Price | H5: Coal Price (Including Severance) | J5: River / Rail | K5: MP / District | L5: Rate | M5: Btu | N5: lbs. SO2 | O5: Sulfur % | P5: Ash % | Q5: Quality Adj. | R5: Quality Adjusted | S5: Delivered | T5: Comments
R6: Delivered Cost | S6: $MMBTU
C7: BAMM INC. | D7: MATTCO | E7: 72000 | F7: 71.58 | G7: =-((0.037+0.03)/2)*F7 -> -2.39793 | H7: =SUM(F7:G7) -> 69.18207 | I7: 0.4 | J7: Barge | K7: KY Coal Terminal LO, KY | L7: 9.64 | M7: 12000 | N7: 1.67 | O7: 0.01002 | P7: 0.12 | Q7: =+((1-$E$14)*(N7*M7*$E$15)/1000000)+(($E$14*N7*M7*$E$16)/1000000) -> 4.402329244 | R7: =F7+L7+Q7 -> 85.62232924 | S7: =R7/(M7/500) -> 3.567597052 | T7: Term 1/1/22-12/31/23; Proposed Purchase. Purchased. 03-00-21-003
C8: Case Coal Sales, LLC | E8: 38400 | F8: 82.5 | G8: =-((0.037+0.03)/2)*F8 -> -2.76375 | H8: 79.73625 | I8: 0.4 | J8: Barge | K8: KY Coal Terminal LO, KY | L8: 9.64 | M8: 12000 | N8: 1.7 | O8: 0.0102 | P8: 0.13 | Q8: =+((1-$E$14)*(N8*M8*$E$15)/1000000)+(($E$14*N8*M8*$E$16)/1000000) -> 4.481413003 | R8: 96.621413 | S8: 4.025892208 | T8: Post RFP Negotiations; Fuel Procurement Recommended Purchase. Purchased. 03-00-21-002
C9: River Trading Co | E9: 57600 | F9: 85.17 | G9: -2.853195 | H9: 82.316805 | I9: 0.4 | J9: Barge | K9: Docks Creek LO,WV | L9: 9.04 | M9: 11800 | N9: 1.8 | O9: =((N9*M9)/20000)/100 -> 0.01062 | P9: 0.08 | Q9: =+((1-$E$14)*(N9*M9*$E$15)/1000000)+(($E$14*N9*M9*$E$16)/1000000) -> 4.665941774 | R9: 98.87594177 | S9: 4.18965855 | T9: Post RFP Negotiations; Fuel Procurement Recommended Purchase. Purchased. 03-00-21-004
C10: Blackhawk Coal Sales, LLC | D10: Blue Creek #1 | E10: 350000 | F10: 54 | G10: -1.809 | H10: 52.191 | I10: 0.4 | J10: Barge | K10: Quincy LO, WV | L10: 9.5 | M10: 12000 | N10: 1.45 | O10: 0.0087 | P10: 0.1325 | Q10: 1.93899336 | R10: =F10+L10+Q10 -> 65.43899336 | S10: =R10/(M10/500) -> 2.726624723 | T10: Purchase date of 06/18/2021, Document signed date of 01/19/2022. Purchase 03-00-21-9M1
C11: Alpha Thermal Coal Sales Company | D11: Pax | E11: 59400 | F11: 55.75 | G11: -1.867625 | H11: 53.882375 | I11: 0.4 | J11: Barge | K11: Marmet Dock LO, WV | L11: 10.76 | M11: 12400 | N11: 1.6 | O11: 0.00992 | P11: 0.1 | Q11: 2.210898176 | R11: 68.72089818 | S11: 2.771003959 | T11: Purchase date of 06/18/2021, Document signed date of 10/14/2021. Purchase 03-00-21-9M2
C13: Mitchell
C14: FGD Removal Efficiency | E14: 0.9883
C15: SO2 Allowance Cost | E15: 1.5
C16: Removal Cost $/Ton | E16: 222.26

Sheet Mitchell Low Sulfur 2023
B1: Mitchell Low Sulfur - 2023 CAPP
C4: Offer | D4: Mine | E4: Quantity | F4: Coal Price | G4: Severance Tax Discount | H4: Coal Price | I4: Severance Tax rate | J4: Transportation | M4: Offered Quality | Q4: Quality Adjusted Delivered Pricing
E5: Tons | F5: Coal Price | H5: Coal Price (Including Severance) | J5: River / Rail | K5: MP / District | L5: Rate | M5: Btu | N5: lbs. SO2 | O5: Sulfur % | P5: Ash % | Q5: Quality Adj. | R5: Quality Adjusted | S5: Delivered | T5: Comments
R6: Delivered Cost | S6: $MMBTU
C7: Alpha Thermal Coal Sales Company | D7: Pax and/or Kingston and/or Workman | E7: 205000 | F7: 73 | G7: =-((0.037+0.03)/2)*F7 -> -2.4455 | H7: =SUM(F7:G7) -> 70.5545 | I7: 0.4 | J7: Barge | K7: Riverpoint LO,WV | L7: 8.74 | M7: 12400 | N7: 1.7 | O7: =((N7*M7)/20000)/100 -> 0.01054 | P7: 0.125 | Q7: =+((1-$E$16)*(N7*M7*$E$17)/1000000)+(($E$16*N7*M7*$E$18)/1000000) -> 4.630793437 | R7: =F7+L7+Q7 -> 86.37079344 | S7: =R7/(M7/500) -> 3.482693284 | T7: Term: 1/1/23 - 12/31/2024. Post RFP Negotiations; Fuel Procurement Recommended Purchase. Purchased 03-00-21-9M3
C8: BAMM INC. | D8: MATTCO | E8: 72000 | F8: 71.58 | G8: -2.39793 | H8: 69.18207 | I8: 0.4 | J8: Barge | K8: KY Coal Terminal LO, KY | L8: 10.02 | M8: 12000 | N8: 1.67 | O8: 0.01002 | P8: 0.12 | Q8: =+((1-$E$16)*(N8*M8*$E$17)/1000000)+(($E$16*N8*M8*$E$18)/1000000) -> 4.402329244 | R8: 86.00232924 | S8: 3.583430385 | T8: Term 1/1/22-12/31/23; Proposed Purchase. Purchased. 03-00-21-003
C9: Blackhawk Coal Sales, LLC | D9: Blue Creek Mine | E9: 150000 | F9: 75 | G9: -2.5125 | H9: =SUM(F9:G9) -> 72.4875 | I9: 0.4 | J9: Barge | K9: Quincy Dock LO, WV | L9: 9.57 | M9: 12000 | N9: 1.45 | O9: =((N9*M9)/20000)/100 -> 0.0087 | P9: 0.14 | Q9: =+((1-$E$16)*(N9*M9*$E$17)/1000000)+(($E$16*N9*M9*$E$18)/1000000) -> 3.822381679 | R9: 88.39238168 | S9: 3.683015903 | T9: Term: 1/1/23-12/31/2026; Post RFP Negotiations; Fuel Procurement Recommended Purchase. Purchased 03-00-21-9M4
C10: Blackhawk Coal Sales, LLC | D10: Blue Creek #1 | E10: 650000 | F10: 55.75 | G10: -1.867625 | H10: =SUM(F10:G10) -> 53.882375 | I10: 0.4 | J10: Barge | K10: Quincy LO, WV | L10: 9.88 | M10: 12000 | N10: 1.45 | O10: 0.0087 | P10: 0.1325 | Q10: 1.93899336 | R10: 67.56899336 | S10: 2.815374723 | T10: Purchase date of 06/18/2021, Document signed date of 01/19/2022. Purchase 03-00-21-9M1
C11: Alpha Thermal Coal Sales Company | D11: Pax | E11: 237600 | F11: 58.25 | G11: -1.951375 | H11: 56.298625 | I11: 0.4 | J11: Barge | K11: Marmet Dock LO, WV | L11: 11.19 | M11: 12400 | N11: 1.6 | O11: 0.00992 | P11: 0.1 | Q11: 2.210898176 | R11: 71.65089818 | S11: 2.88914912 | T11: Purchase date of 06/18/2021, Document signed date of 10/14/2021. Purchase 03-00-21-9M2
C15: Mitchell
C16: FGD Removal Efficiency | E16: 0.9883
C17: SO2 Allowance Cost | E17: 1.5
C18: Removal Cost $/Ton | E18: 222.26

Sheet Mitchell Low Sulfur 2024
B1: Mitchell Low Sulfur - 2024 CAPP
C4: Offer | D4: Mine | E4: Quantity | F4: Coal Price | G4: Severance Tax Discount | H4: Coal Price | I4: Severance Tax rate | J4: Transportation | M4: Offered Quality | Q4: Quality Adjusted Delivered Pricing
E5: Tons | F5: Coal Price | H5: Coal Price (Including Severance) | J5: River / Rail | K5: MP / District | L5: Rate | M5: Btu | N5: lbs. SO2 | O5: Sulfur % | P5: Ash % | Q5: Quality Adj. | R5: Quality Adjusted | S5: Delivered | T5: Comments
R6: Delivered Cost | S6: $MMBTU
C7: Alpha Thermal Coal Sales Company | D7: Pax and/or Kingston and/or Workman | E7: 205000 | F7: 73 | G7: =-((0.037+0.03)/2)*F7 -> -2.4455 | H7: =SUM(F7:G7) -> 70.5545 | I7: 0.4 | J7: Barge | K7: Riverpoint LO,WV | L7: 8.74 | M7: 12400 | N7: 1.7 | O7: =((N7*M7)/20000)/100 -> 0.01054 | P7: 0.125 | Q7: =+((1-$E$12)*(N7*M7*$E$13)/1000000)+(($E$12*N7*M7*$E$14)/1000000) -> 4.630793437 | R7: =F7+L7+Q7 -> 86.37079344 | S7: =R7/(M7/500) -> 3.482693284 | T7: Term: 1/1/23 - 12/31/2024. Post RFP Negotiations; Fuel Procurement Recommended Purchase. Purchased 03-00-21-9M3
C8: Blackhawk Coal Sales, LLC | D8: Blue Creek Mine | E8: 150000 | F8: 75 | G8: -2.5125 | H8: 72.4875 | I8: 0.4 | J8: Barge | K8: Quincy Dock LO, WV | L8: 9.57 | M8: 12000 | N8: 1.45 | O8: =((N8*M8)/20000)/100 -> 0.0087 | P8: 0.14 | Q8: =+((1-$E$12)*(N8*M8*$E$13)/1000000)+(($E$12*N8*M8*$E$14)/1000000) -> 3.822381679 | R8: =F8+L8+Q8 -> 88.39238168 | S8: =R8/(M8/500) -> 3.683015903 | T8: Term: 1/1/23-12/31/2026; Post RFP Negotiations; Fuel Procurement Recommended Purchase. Purchased 03-00-21-9M4
C11: Mitchell
C12: FGD Removal Efficiency | E12: 0.9883
C13: SO2 Allowance Cost | E13: 1.5
C14: Removal Cost $/Ton | E14: 222.26

Sheet Mitchell Low Sulfur 2025
B1: Mitchell Low Sulfur - 2025 CAPP
C4: Offer | D4: Mine | E4: Quantity | F4: Coal Price | G4: Severance Tax Discount | H4: Coal Price | I4: Severance Tax rate | J4: Transportation | M4: Offered Quality | Q4: Quality Adjusted Delivered Pricing
E5: Tons | F5: Coal Price | H5: Coal Price (Including Severance) | J5: River / Rail | K5: MP / District | L5: Rate | M5: Btu | N5: lbs. SO2 | O5: Sulfur % | P5: Ash % | Q5: Quality Adj. | R5: Quality Adjusted | S5: Delivered | T5: Comments
R6: Delivered Cost | S6: $MMBTU
C7: Blackhawk Coal Sales, LLC | D7: Blue Creek Mine | E7: 150000 | F7: 75 | G7: =-((0.037+0.03)/2)*F7 -> -2.5125 | H7: =SUM(F7:G7) -> 72.4875 | I7: 0.4 | J7: Barge | K7: Quincy Dock LO, WV | L7: 9.57 | M7: 12000 | N7: 1.45 | O7: =((N7*M7)/20000)/100 -> 0.0087 | P7: 0.14 | Q7: =+((1-$E$11)*(N7*M7*$E$12)/1000000)+(($E$11*N7*M7*$E$13)/1000000) -> 3.822381679 | R7: =F7+L7+Q7 -> 88.39238168 | S7: =R7/(M7/500) -> 3.683015903 | T7: Term: 1/1/23-12/31/2026; Post RFP Negotiations; Fuel Procurement Recommended Purchase. Purchased 03-00-21-9M4
C10: Mitchell
C11: FGD Removal Efficiency | E11: 0.9883
C12: SO2 Allowance Cost | E12: 1.5
C13: Removal Cost $/Ton | E13: 222.26

Sheet Mitchell Low Sulfur 2026
B1: Mitchell Low Sulfur - 2026 CAPP
C4: Offer | D4: Mine | E4: Quantity | F4: Coal Price | G4: Severance Tax Discount | H4: Coal Price | I4: Severance Tax rate | J4: Transportation | M4: Offered Quality | Q4: Quality Adjusted Delivered Pricing
E5: Tons | F5: Coal Price | H5: Coal Price (Including Severance) | J5: River / Rail | K5: MP / District | L5: Rate | M5: Btu | N5: lbs. SO2 | O5: Sulfur % | P5: Ash % | Q5: Quality Adj. | R5: Quality Adjusted | S5: Delivered | T5: Comments
R6: Delivered Cost | S6: $MMBTU
C7: Blackhawk Coal Sales, LLC | D7: Blue Creek Mine | E7: 150000 | F7: 75 | G7: =-((0.037+0.03)/2)*F7 -> -2.5125 | H7: =SUM(F7:G7) -> 72.4875 | I7: 0.4 | J7: Barge | K7: Quincy Dock LO, WV | L7: 9.57 | M7: 12000 | N7: 1.45 | O7: =((N7*M7)/20000)/100 -> 0.0087 | P7: 0.14 | Q7: =+((1-$E$11)*(N7*M7*$E$12)/1000000)+(($E$11*N7*M7*$E$13)/1000000) -> 3.822381679 | R7: =F7+L7+Q7 -> 88.39238168 | S7: =R7/(M7/500) -> 3.683015903 | T7: Term: 1/1/23-12/31/2026; Post RFP Negotiations; Fuel Procurement Recommended Purchase. Purchased 03-00-21-9M4
C10: Mitchell
C11: FGD Removal Efficiency | E11: 0.9883
C12: SO2 Allowance Cost | E12: 1.5
C13: Removal Cost $/Ton | E13: 222.26

Sheet Mitchell High Sulfur 2022
B1: Mitchell High Sulfur - 2022 NAPP
C4: Offer | D4: Mine | E4: Quantity | F4: Coal Price | G4: Severance Tax Discount | H4: Coal Price | I4: Severance Tax rate | J4: Transportation | M4: Offered Quality | Q4: Quality Adjusted Delivered Pricing
E5: Tons | F5: Coal Price | H5: Coal Price (Including Severance) | J5: River / Rail | K5: MP / District | L5: Rate | M5: Btu | N5: lbs. SO2 | O5: Sulfur % | P5: Ash % | Q5: Quality Adj. | R5: Quality Adjusted | S5: Delivered | T5: Comments
R6: Delivered Cost | S6: $MMBTU
C7: ACNR Coal Sales, Inc. | D7: Marshall County Mine | E7: 150000 | F7: 80 | G7: =-((0.037+0.03)/2)*F7 -> -2.68 | H7: =SUM(F7:G7) -> 77.32 | I7: 0.4 | J7: FOB Belt Mitchell Plant | K7: Ireland Dock LO - Cresap, WV | L7: 0 | M7: 12650 | N7: 5.5 | O7: =(M7*N7)/20000/100 -> 0.0347875 | P7: 0.1 | Q7: =+((1-$E$13)*(N7*M7*$E$14)/1000000)+(($E$13*N7*M7*$E$15)/1000000) -> 15.28403479 | R7: =F7+L7+Q7 -> 95.28403479 | S7: =R7/(M7/500) -> 3.766167383 | T7: Term: 1/1/22-12/31/2025; Post RFP Negotiations; Fuel Procurement Recommended Purchase. Purchased 03-00-21-9M5. Contract being finalized.
C12: Mitchell
C13: FGD Removal Efficiency | E13: 0.9883
C14: SO2 Allowance Cost | E14: 1.5
C15: Removal Cost $/Ton | E15: 222.26

Sheet Mitchell High Sulfur 2023
B1: Mitchell High Sulfur - 2023 NAPP
C4: Offfer | D4: Mine | E4: Quantity | F4: Coal Price | G4: Severance Tax Discount | H4: Coal Price | I4: Severance Tax rate | J4: Transportation | M4: Offered Quality | Q4: Quality Adjusted Delivered Pricing
E5: Tons | F5: Coal Price | H5: Coal Price (Including Severance) | J5: River / Rail | K5: MP / District | L5: Rate | M5: Btu | N5: lbs. SO2 | O5: Sulfur % | P5: Ash % | Q5: Quality Adj. | R5: Quality Adjusted | S5: Delivered | T5: Comments
R6: Delivered Cost | S6: $MMBTU
C7: ACNR Coal Sales, Inc. | D7: Marshall County Mine | E7: 500000 | F7: 70 | G7: =-((0.037+0.03)/2)*F7 -> -2.345 | H7: =SUM(F7:G7) -> 67.655 | I7: 0.4 | J7: FOB Belt Mitchell Plant | K7: Ireland Dock LO - Cresap, WV | L7: 0 | M7: 12650 | N7: 5.5 | O7: =(M7*N7)/20000/100 -> 0.0347875 | P7: 0.1 | Q7: =+((1-$E$13)*(N7*M7*$E$14)/1000000)+(($E$13*N7*M7*$E$15)/1000000) -> 15.28403479 | R7: =F7+L7+Q7 -> 85.28403479 | S7: =R7/(M7/500) -> 3.370910466 | T7: Term: 1/1/22-12/31/2025; Post RFP Negotiations; Fuel Procurement Recommended Purchase. Purchased 03-00-21-9M5. Contract being finalized.
C12: Mitchell
C13: FGD Removal Efficiency | E13: 0.9883
C14: SO2 Allowance Cost | E14: 1.5
C15: Removal Cost $/Ton | E15: 222.26

Sheet Mitchell High Sulfur 2024
B1: Mitchell High Sulfur - 2024 NAPP
C4: Offer | D4: Mine | E4: Quantity | F4: Coal Price | G4: Severance Tax Discount | H4: Coal Price | I4: Severance Tax rate | J4: Transportation | M4: Offered Quality | Q4: Quality Adjusted Delivered Pricing
E5: Tons | F5: Coal Price | H5: Coal Price (Including Severance) | J5: River / Rail | K5: MP / District | L5: Rate | M5: Btu | N5: lbs. SO2 | O5: Sulfur % | P5: Ash % | Q5: Quality Adj. | R5: Quality Adjusted | S5: Delivered | T5: Comments
R6: Delivered Cost | S6: $MMBTU
C7: ACNR Coal Sales, Inc. | D7: Marshall County Mine | E7: 750000 | F7: 70 | G7: =-((0.037+0.03)/2)*F7 -> -2.345 | H7: =SUM(F7:G7) -> 67.655 | I7: 0.4 | J7: FOB Belt Mitchell Plant | K7: Ireland Dock LO - Cresap, WV | L7: 0 | M7: 12650 | N7: 5.5 | O7: =(M7*N7)/20000/100 -> 0.0347875 | P7: 0.1 | Q7: =+((1-$E$13)*(N7*M7*$E$14)/1000000)+(($E$13*N7*M7*$E$15)/1000000) -> 15.28403479 | R7: =F7+L7+Q7 -> 85.28403479 | S7: =R7/(M7/500) -> 3.370910466 | T7: Term: 1/1/22-12/31/2025; Post RFP Negotiations; Fuel Procurement Recommended Purchase. Purchased 03-00-21-9M5. Contract being finalized.
C12: Mitchell
C13: FGD Removal Efficiency | E13: 0.9883
C14: SO2 Allowance Cost | E14: 1.5
C15: Removal Cost $/Ton | E15: 222.26

Sheet Mitchell High Sulfur 2025
B1: Mitchell High Sulfur - 2025 NAPP
C4: Offer | D4: Mine | E4: Quantity | F4: Coal Price | G4: Severance Tax Discount | H4: Coal Price | I4: Severance Tax rate | J4: Transportation | M4: Offered Quality | Q4: Quality Adjusted Delivered Pricing
E5: Tons | F5: Coal Price | H5: Coal Price (Including Severance) | J5: River / Rail | K5: MP / District | L5: Rate | M5: Btu | N5: lbs. SO2 | O5: Sulfur % | P5: Ash % | Q5: Quality Adj. | R5: Quality Adjusted | S5: Delivered | T5: Comments
R6: Delivered Cost | S6: $MMBTU
C7: ACNR Coal Sales, Inc. | D7: Marshall County Mine | E7: 750000 | F7: 70 | G7: =-((0.037+0.03)/2)*F7 -> -2.345 | H7: =SUM(F7:G7) -> 67.655 | I7: 0.4 | J7: FOB Belt Mitchell Plant | K7: Ireland Dock LO - Cresap, WV | L7: 0 | M7: 12650 | N7: 5.5 | O7: =(M7*N7)/20000/100 -> 0.0347875 | P7: 0.1 | Q7: =+((1-$E$13)*(N7*M7*$E$14)/1000000)+(($E$13*N7*M7*$E$15)/1000000) -> 15.28403479 | R7: =F7+L7+Q7 -> 85.28403479 | S7: =R7/(M7/500) -> 3.370910466 | T7: Term: 1/1/22-12/31/2025; Post RFP Negotiations; Fuel Procurement Recommended Purchase. Purchased 03-00-21-9M5. Contract being finalized.
C12: Mitchell
C13: FGD Removal Efficiency | E13: 0.9883
C14: SO2 Allowance Cost | E14: 1.5
C15: Removal Cost $/Ton | E15: 222.26
